bitfinex-derivatives/quotes_BNBF0:USTF0_20260114
["timestamp","ask_amount","ask_price","bid_price","bid_amount"]
[1768369935056,0.76601307,940.91,940.28,1.5916984]
[1768369935253,0.76601307,940.9,940.28,1.5916984]
[1768369935458,0.76601307,940.89,940.28,1.5916984]
[1768369935758,0.76601307,940.88,940.28,1.5916984]
[1768369935957,0.76601307,940.87,940.28,1.5916984]
[1768369936157,0.76601307,940.86,940.28,1.5916984]
[1768369936455,0.76601307,940.85,940.28,1.5916984]
[1768369936654,0.76601307,940.84,940.28,1.5916984]
[1768369936855,0.76601307,940.83,940.28,1.5916984]
[1768369937051,0.01190534,941.81,940.28,1.5916984]
[1768369937052,0.76601307,940.82,940.28,1.5916984]
[1768369937253,0.18488806,941.94,940.28,1.5916984]
[1768369937254,0.76601307,940.81,940.28,1.5916984]
[1768369937455,0.76601307,940.8,940.28,1.5916984]
[1768369937656,0.76601307,940.79,940.28,1.5916984]
[1768369937858,0.76601307,940.78,940.28,1.5916984]
[1768369938055,0.76601307,940.77,940.28,1.5916984]
[1768369938256,0.76601307,940.76,940.28,1.5916984]
[1768369938559,0.76590383,940.75,940.28,1.5916984]
[1768369938856,0.76590383,940.74,940.28,1.5916984]
[1768369939056,0.76590383,940.73,940.29,1.5916984]
[1768369939356,0.76590383,940.72,940.28,1.5916984]
[1768369939559,0.76590383,940.71,940.28,1.5916984]
[1768369939756,0.00840323,941.68,940.32,1.5916984]
[1768369939958,0.76575886,941.67,940.32,1.5916984]
[1768369940156,0.76575886,941.66,940.33,1.5916984]
[1768369940457,0.76575886,941.65,940.32,1.5916984]
[1768369940656,0.76575886,941.64,940.32,1.5916984]
[1768369940861,0.76575886,941.63,940.32,1.5916984]
[1768369941061,0.76575886,941.62,940.32,1.5916984]
[1768369941358,0.76575886,941.61,940.31,1.5916984]
[1768369941558,0.76575886,941.6,940.32,1.5916984]
[1768369941758,0.76575886,941.59,940.32,1.5916984]
[1768369942061,0.76575886,941.58,940.32,1.5916984]
[1768369942262,0.76575886,941.57,940.39,1.5916984]
[1768369942559,0.76575886,941.56,940.39,1.5916984]
[1768369942858,0.76575886,941.55,940.39,1.5916984]
[1768369943059,0.76575886,941.54,940.39,1.5916984]
[1768369943362,0.76575886,941.53,940.38,1.5916984]
[1768369943560,0.76575886,941.52,940.38,1.5916984]
[1768369943865,0.76575886,941.51,940.38,1.5916984]
[1768369944161,0.76575886,941.5,940.38,1.5916984]
[1768369944363,0.76575886,941.49,940.37,1.5916984]
[1768369944560,0.76575886,941.48,940.37,1.5916984]
[1768369944764,0.76575886,941.47,940.37,1.5916984]
[1768369944963,0.76575886,941.46,940.37,1.5916984]
[1768369945163,0.76575886,941.45,940.37,1.5916984]
[1768369945362,0.76575886,941.44,940.37,1.5916984]
[1768369945562,0.76575886,941.43,940.37,1.5916984]
[1768369945764,0.76575886,941.42,940.37,1.5916984]
[1768369946066,0.76575886,941.41,940.37,1.5916984]
[1768369946366,0.76575886,941.4,940.36,1.5916984]
[1768369946564,0.76575886,941.39,940.36,1.5916984]
[1768369946766,0.76575886,941.38,940.36,1.5916984]
[1768369946964,0.76575886,941.37,940.36,1.5916984]
[1768369947164,0.76575886,941.36,940.36,1.5916984]
[1768369947467,0.76575886,941.35,940.36,1.5916984]
[1768369947766,0.76575886,941.34,940.36,1.5916984]
[1768369947965,0.76575886,941.33,940.36,1.5916984]
[1768369948261,0.76575886,941.32,940.36,1.5916984]
[1768369948461,0.76575886,941.31,940.35,1.5916984]
[1768369948762,0.76575886,941.3,940.35,1.5916984]
[1768369948965,0.18488806,941.94,940.35,1.5916984]
[1768369948966,0.76575886,941.29,940.35,1.5916984]
[1768369949164,0.76575886,941.28,940.35,1.5916984]
[1768369949361,0.76575886,941.27,940.35,1.5916984]
[1768369949562,0.18488806,941.94,939.67,2.6431038]
[1768369949563,0.76575886,941.26,940.37,1.5916984]
[1768369949766,0.76575886,941.25,940.37,1.5916984]
[1768369950067,0.76575886,941.24,940.37,1.5916984]
[1768369950267,0.76575886,941.23,940.38,1.5916984]
[1768369950468,0.76575886,941.22,940.38,1.5916984]
[1768369950666,0.76575886,941.21,940.38,1.5916984]
[1768369950964,0.76575886,941.2,940.38,1.5916984]
[1768369951263,0.76575886,941.19,940.38,1.5916984]
[1768369951563,0.76575886,941.18,940.38,1.5916984]
[1768369951765,0.76575886,941.17,940.38,1.5916984]
[1768369951968,0.76575886,941.16,940.38,1.5916984]
[1768369952169,0.76575886,941.15,940.39,1.5916984]
[1768369952369,0.76575886,941.14,940.39,1.5916984]
[1768369952566,0.76575886,941.13,940.39,1.5916984]
[1768369952766,0.76575886,941.12,940.39,1.5916984]
[1768369952964,0.76575886,941.11,940.39,1.5916984]
[1768369953266,0.76575886,941.1,940.39,1.5916984]
[1768369953466,0.76575886,941.09,940.38,1.5916984]
[1768369953671,0.76575886,941.08,940.38,1.5916984]
[1768369953866,0.76575886,941.07,940.38,1.5916984]
[1768369954066,0.76575886,941.06,940.38,1.5916984]
[1768369954367,0.76575886,941.05,940.38,1.5916984]
[1768369954670,0.76575886,941.04,940.38,1.5916984]
[1768369954870,0.76575886,941.03,940.38,1.5916984]
[1768369955068,0.76575886,941.02,940.38,1.5916984]
[1768369955269,0.76575886,941.01,940.38,1.5916984]
[1768369955568,0.76575886,941.0,940.38,1.5916984]
[1768369955866,0.76575886,940.99,940.38,1.5916984]
[1768369956069,0.76575886,940.98,940.38,1.5916984]
[1768369956274,0.76575886,940.97,940.38,1.5916984]
[1768369956474,0.76575886,940.96,940.38,1.5916984]
[1768369956674,0.76575886,940.95,940.38,1.5916984]
[1768369956874,0.18485614,942.08,940.38,1.5916984]
[1768369957175,0.76417084,942.07,940.38,1.5916984]
[1768369957471,0.76417084,942.06,940.38,1.5916984]
[1768369957674,0.76417084,942.05,940.38,1.5916984]
[1768369957971,0.76417084,942.04,940.38,1.5916984]
[1768369958174,0.76417084,942.03,940.38,1.5916984]
[1768369958370,0.76417084,942.02,940.38,1.5916984]
[1768369958570,0.76417084,942.01,940.38,1.5916984]
[1768369958770,0.76417084,942.0,940.38,1.5916984]
[1768369958970,0.76417084,941.99,940.38,1.5916984]
[1768369959171,0.76417084,941.98,940.38,1.5916984]
[1768369959373,0.76417084,941.97,940.38,1.5916984]
[1768369959570,0.76417084,941.96,940.38,1.5916984]
[1768369959876,0.76417084,941.95,940.38,1.5916984]
[1768369960076,0.76417084,941.94,940.38,1.5916984]
[1768369960273,0.76417084,941.93,940.38,1.5916984]
[1768369960474,0.76417084,941.92,940.38,1.5916984]
[1768369960673,0.76417084,941.91,940.38,1.5916984]
[1768369960873,0.76417084,941.9,940.38,1.5916984]
[1768369961074,0.76417084,941.89,940.38,1.5916984]
[1768369961276,0.76417084,941.88,940.39,1.5916984]
[1768369961574,0.76417084,941.87,940.39,1.5916984]
[1768369961876,0.76417084,941.86,940.39,1.5916984]
[1768369962073,0.76417084,941.85,940.39,1.5916984]
[1768369962276,0.76417084,941.84,940.39,1.5916984]
[1768369962477,0.76417084,941.83,940.39,1.5916984]
[1768369962673,0.76417084,941.82,940.39,1.5916984]
[1768369962976,0.76417084,941.81,940.39,1.5916984]
[1768369963175,0.76417084,941.8,940.39,1.5916984]
[1768369963371,0.76417084,941.79,940.39,1.5916984]
[1768369963572,0.76417084,941.78,940.39,1.5916984]
[1768369963772,0.76417084,941.77,940.39,1.5916984]
[1768369963975,0.76417084,941.76,940.39,1.5916984]
[1768369964172,0.76417084,941.75,940.4,1.5916984]
[1768369964377,0.76417084,941.74,940.4,1.5916984]
[1768369964576,0.76417084,941.73,940.4,1.5916984]
[1768369964773,0.76417084,941.72,940.4,1.5916984]
[1768369964975,0.76417084,941.71,940.4,1.5916984]
[1768369965176,0.76417084,941.7,940.4,1.5916984]
[1768369965372,0.76417084,941.69,940.4,1.5916984]
[1768369965675,0.76417084,941.68,940.4,1.5916984]
[1768369965873,0.76417084,941.67,940.4,1.5916984]
[1768369966076,0.76417084,941.66,940.4,1.5916984]
[1768369966271,0.76417084,941.65,940.41,1.5916984]
[1768369966576,0.18485614,942.08,940.41,1.5916984]
[1768369966577,0.76417084,941.64,940.41,1.5916984]
[1768369966776,0.76417084,941.63,940.41,1.5916984]
[1768369967072,0.76417084,941.62,940.41,1.5916984]
[1768369967276,0.76417084,941.61,940.41,1.5916984]
[1768369967474,0.76417084,941.6,940.41,1.5916984]
[1768369967677,0.76417084,941.59,940.41,1.5916984]
[1768369967972,0.76417084,941.58,940.41,1.5916984]
[1768369968174,0.76417084,941.57,940.41,1.5916984]
[1768369968375,0.76417084,941.56,940.42,1.5916984]
[1768369968578,0.76417084,941.55,940.42,1.5916984]
[1768369968878,0.76417084,941.54,940.42,1.5916984]
[1768369969075,0.76417084,941.53,940.42,1.5916984]
[1768369969278,0.76417084,941.52,940.43,1.5916984]
[1768369969574,0.76417084,941.51,940.43,1.5916984]
[1768369969779,0.76417084,941.5,940.43,1.5916984]
[1768369970079,0.76417084,941.49,940.43,1.5916984]
[1768369970374,0.76417084,941.48,940.44,1.5916984]
[1768369970574,0.76417084,941.47,940.44,1.5916984]
[1768369970777,0.18485614,942.08,940.44,1.5916984]
[1768369970778,0.76417084,941.46,940.44,1.5916984]
[1768369970976,0.76417084,941.45,940.44,1.5916984]
[1768369971175,0.76417084,941.44,940.44,1.5916984]
[1768369971382,0.76417084,941.43,940.45,1.5916984]
[1768369971681,0.76417084,941.42,940.45,1.5916984]
[1768369971980,0.76417084,941.41,940.45,1.5916984]
[1768369972280,0.76417084,941.4,940.45,1.5916984]
[1768369972479,0.76417084,941.39,940.45,1.5916984]
[1768369972679,0.76417084,941.38,940.45,1.5916984]
[1768369972881,0.76417084,941.37,940.45,1.5916984]
[1768369973081,0.76417084,941.36,940.45,1.5916984]
[1768369973281,0.76417084,941.35,940.45,1.5916984]
[1768369973479,0.76417084,941.34,940.46,1.5916984]
[1768369973776,0.76417084,941.33,940.46,1.5916984]
[1768369973979,0.76417084,941.32,940.46,1.5916984]
[1768369974180,0.76417084,941.31,940.46,1.5916984]
[1768369974379,0.76417084,941.3,940.47,1.5916984]
[1768369974580,0.76417084,941.29,940.47,1.5916984]
[1768369974778,0.76417084,941.28,940.47,1.5916984]
[1768369975078,0.76417084,941.27,940.47,1.5916984]
[1768369975278,0.76417084,941.26,940.47,1.5916984]
[1768369975480,0.76417084,941.25,940.47,1.5916984]
[1768369975678,0.76417084,941.24,940.47,1.5916984]
[1768369975980,0.76417084,941.23,940.47,1.5916984]
[1768369976181,0.76417084,941.22,940.47,1.5916984]
[1768369976381,0.76417084,941.21,940.48,1.5916984]
[1768369976581,0.76417084,941.2,940.48,1.5916984]
[1768369976782,0.76417084,941.19,940.48,1.5916984]
[1768369976979,0.76417084,941.18,940.48,1.5916984]
[1768369977281,0.76417084,941.17,940.48,1.5916984]
[1768369977483,0.76417084,941.16,940.49,1.5916984]
[1768369977679,0.76417084,941.15,940.49,1.5916984]
[1768369977983,0.76417084,941.14,940.49,1.5916984]
[1768369978178,0.76417084,941.13,940.49,1.5916984]
[1768369978384,0.76417084,941.12,940.5,1.5916984]
[1768369978580,0.76417084,941.11,940.5,1.5916984]
[1768369978782,0.76417084,941.1,940.5,1.5916984]
[1768369978983,0.76417084,941.09,940.5,1.5916984]
[1768369979189,0.76417084,941.08,940.5,1.5916984]
[1768369979385,0.76417084,941.07,940.5,1.5916984]
[1768369979583,0.76417084,941.06,940.5,1.5916984]
[1768369979884,0.76417084,941.05,940.5,1.5916984]
[1768369980087,0.76417084,941.04,940.5,1.5916984]
[1768369980283,0.76417084,941.03,940.5,1.5916984]
[1768369980487,0.76417084,941.02,940.51,1.5916984]
[1768369980684,0.76417084,941.01,940.51,1.5916984]
[1768369980890,0.76417084,941.0,940.51,1.5916984]
[1768369981089,0.76417084,940.99,940.51,1.5916984]
[1768369981386,0.18485614,942.08,939.83,2.6431038]
[1768369981387,0.76417084,940.98,940.5,1.5916984]
[1768369981589,0.76417084,940.97,940.49,1.5916984]
[1768369981788,0.76417084,940.96,940.49,1.5916984]
[1768369981988,0.76417084,940.95,940.49,1.5916984]
[1768369982189,0.76417084,940.94,940.49,1.5916984]
[1768369982390,0.76417084,940.93,940.49,1.5916984]
[1768369982589,0.76417084,940.92,940.49,1.5916984]
[1768369982787,0.76417084,940.91,940.49,1.5916984]
[1768369982987,0.76417084,940.9,940.49,1.5916984]
[1768369983192,0.76417084,940.89,940.51,1.5916984]
[1768369983394,0.76417084,940.88,940.52,1.5916984]
[1768369983694,0.76417084,940.87,940.52,1.5916984]
[1768369983990,0.76417084,940.86,940.52,1.5916984]
[1768369984194,0.76417084,940.85,940.52,1.5916984]
[1768369984390,0.76417084,940.84,940.53,1.5916984]
[1768369984592,0.76417084,940.83,940.53,1.5916984]
[1768369984790,0.76417084,940.82,940.53,1.5916984]
[1768369984996,0.76417084,940.81,940.53,1.5916984]
[1768369985193,0.76417084,940.8,940.53,1.5916984]
[1768369985497,0.76417084,940.79,940.53,1.5916984]
[1768369985695,0.76417084,940.78,940.53,1.5916984]
[1768369985895,0.00869353,941.76,940.53,1.5916984]
[1768369986194,0.76706883,941.75,940.53,1.5916984]
[1768369986395,0.76706883,941.74,940.54,1.5916984]
[1768369986694,0.76706883,941.73,940.54,1.5916984]
[1768369986893,0.76706883,941.72,940.54,1.5916984]
[1768369987094,0.76706883,941.71,940.54,1.5916984]
[1768369987297,0.76706883,941.7,940.54,1.5916984]
[1768369987496,0.18485614,942.08,940.54,1.5916984]
[1768369987497,0.76706883,941.69,940.54,1.5916984]
[1768369987794,0.76706883,941.68,940.54,1.5916984]
[1768369988096,0.76706883,941.67,940.54,1.5916984]
[1768369988298,0.76706883,941.66,940.54,1.5916984]
[1768369988497,0.76706883,941.65,940.54,1.5916984]
[1768369988693,0.76706883,941.64,940.54,1.5916984]
[1768369988898,0.76706883,941.63,940.54,1.5916984]
[1768369989099,0.76706883,941.62,940.54,1.5916984]
[1768369989298,0.76706883,941.61,940.54,1.5916984]
[1768369989596,0.76706883,941.6,940.55,1.5916984]
[1768369989799,0.76706883,941.59,940.55,1.5916984]
[1768369990000,0.76706883,941.58,940.55,1.5916984]
[1768369990198,0.76706883,941.57,940.55,1.5916984]
[1768369990396,0.76706883,941.56,940.55,1.5916984]
[1768369990594,0.76706883,941.55,940.55,1.5916984]
[1768369990796,0.76706883,941.54,940.55,1.5916984]
[1768369990999,0.76706883,941.53,940.55,1.5916984]
[1768369991199,0.76706883,941.52,940.55,1.5916984]
[1768369991396,0.76706883,941.51,940.55,1.5916984]
[1768369991600,0.76706883,941.5,940.55,1.5916984]
[1768369991801,0.76706883,941.49,940.55,1.5916984]
[1768369991999,0.76706883,941.48,940.55,1.5916984]
[1768369992300,0.76706883,941.47,940.55,1.5916984]
[1768369992504,0.76706883,941.46,940.55,1.5916984]
[1768369992700,0.76706883,941.45,940.55,1.5916984]
[1768369992902,0.76706883,941.44,940.55,1.5916984]
[1768369993202,0.76706883,941.43,940.55,1.5916984]
[1768369993402,0.76706883,941.42,940.55,1.5916984]
[1768369993605,0.76706883,941.41,940.55,1.5916984]
[1768369993804,0.76706883,941.4,940.55,1.5916984]
[1768369994102,0.76706883,941.39,940.55,1.5916984]
[1768369994302,0.76706883,941.38,940.56,1.5916984]
[1768369994504,0.76706883,941.37,940.56,1.5916984]
[1768369994702,0.76706883,941.36,940.56,1.5916984]
[1768369994902,0.76706883,941.35,940.56,1.5916984]
[1768369995200,0.76706883,941.34,940.56,1.5916984]
[1768369995399,0.76706883,941.33,940.56,1.5916984]
[1768369995600,0.18485614,942.08,940.56,1.5916984]
[1768369995601,0.76706883,941.32,940.56,1.5916984]
[1768369995902,0.76706883,941.31,940.56,1.5916984]
[1768369996103,0.76706883,941.3,940.56,1.5916984]
[1768369996301,0.76706883,941.29,940.56,1.5916984]
[1768369996501,0.76706883,941.28,940.56,1.5916984]
[1768369996700,0.76706883,941.27,940.56,1.5916984]
[1768369996902,0.76706883,941.26,940.56,1.5916984]
[1768369997102,0.76706883,941.25,940.56,1.5916984]
[1768369997406,0.76706883,941.24,940.56,1.5916984]
[1768369997609,0.76706883,941.23,940.56,1.5916984]
[1768369997808,0.76706883,941.22,940.56,1.5916984]
[1768369998108,0.76706883,941.21,940.56,1.5916984]
[1768369998308,0.76706883,941.2,940.56,1.5916984]
[1768369998505,0.76706883,941.19,940.56,1.5916984]
[1768369998709,0.76706883,941.18,940.56,1.5916984]
[1768369998905,0.76706883,941.17,940.56,1.5916984]
[1768369999206,0.76706883,941.16,940.56,1.5916984]
[1768369999406,0.76706883,941.15,940.56,1.5916984]
[1768369999606,0.76706883,941.14,940.56,1.5916984]
[1768369999905,0.76706883,941.13,940.56,1.5916984]
[1768370000108,0.76706883,941.12,940.56,1.5916984]
[1768370000305,0.76706883,941.11,940.56,1.5916984]
[1768370000503,0.76706883,941.1,940.56,1.5916984]
[1768370000705,0.76706883,941.09,940.56,1.5916984]
[1768370000906,0.76706883,941.08,940.56,1.5916984]
[1768370001106,0.76706883,941.07,940.56,1.5916984]
[1768370001307,0.76706883,941.06,940.56,1.5916984]
[1768370001504,0.76706883,941.05,940.56,1.5916984]
[1768370001706,0.76706883,941.04,940.56,1.5916984]
[1768370001905,0.76706883,941.03,940.56,1.5916984]
[1768370002207,0.76706883,941.02,940.56,1.5916984]
[1768370002408,0.76706883,941.01,940.56,1.5916984]
[1768370002708,0.76706883,941.0,940.56,1.5916984]
[1768370002905,0.76706883,940.99,940.56,1.5916984]
[1768370003105,0.76706883,940.98,940.56,1.5916984]
[1768370003309,0.76706883,940.97,940.56,1.5916984]
[1768370003507,0.76706883,940.96,940.56,1.5916984]
[1768370003711,0.76706883,940.95,940.55,1.5916984]
[1768370003910,0.76706883,940.94,940.55,1.5916984]
[1768370004109,0.76706883,940.93,940.55,1.5916984]
[1768370004412,0.76706883,940.92,940.55,1.5916984]
[1768370004615,0.76706883,940.91,940.55,1.5916984]
[1768370004813,0.76706883,940.9,940.55,1.5916984]
[1768370005014,0.76706883,940.89,940.55,1.5916984]
[1768370005214,0.76706883,940.88,940.55,1.5916984]
[1768370005410,0.76706883,940.87,940.55,1.5916984]
[1768370005611,0.76706883,940.86,940.55,1.5916984]
[1768370005811,0.76706883,940.85,940.55,1.5916984]
[1768370006015,0.76706883,940.84,940.55,1.5916984]
[1768370006216,0.76706883,940.83,940.55,1.5916984]
[1768370006418,0.76706883,940.82,940.55,1.5916984]
[1768370006614,0.76706883,940.81,940.55,1.5916984]
[1768370006816,0.76706883,940.8,940.55,1.5916984]
[1768370007017,0.01380877,941.79,940.55,1.5916984]
[1768370007018,0.76706883,940.79,940.55,1.5916984]
[1768370007313,0.76706883,940.78,940.55,1.5916984]
[1768370007518,0.08192628,940.77,940.55,1.5916984]
[1768370007713,0.00755842,941.74,940.55,1.5916984]
[1768370007714,0.18485614,942.08,940.55,1.5916984]
[1768370008014,0.18485614,942.08,939.86,2.6431038]
[1768370009918,0.18485614,942.08,939.79,2.6431038]
[1768370010518,0.18485614,942.08,939.74,2.6431038]
[1768370010819,0.18485614,942.08,939.81,0.1848208]
[1768370075861,0.18485614,942.08,940.48,1.5942185]
[1768370089182,0.18485614,942.08,940.49,1.5942185]
[1768370101582,0.18485614,942.08,940.48,1.5942185]
[1768370107591,0.18485614,942.08,940.47,1.5942185]
[1768370112296,0.18485614,942.08,939.81,0.1848208]
[1768370112297,0.18485614,942.08,940.46,1.5942185]
[1768370113395,0.18485614,942.08,940.42,1.5942185]
[1768370113695,0.18485614,942.08,940.37,1.5942185]
[1768370113898,0.18485614,942.08,940.33,1.5942185]
[1768370114400,0.18485614,942.08,940.31,1.5942185]
[1768370115395,0.18485614,942.08,940.3,1.5942185]
[1768370117397,0.18485614,942.08,940.29,1.5942185]
[1768370119297,0.18485614,942.08,940.28,1.5942185]
[1768370123198,0.18485614,942.08,940.27,1.5942185]
[1768370124003,0.18485614,942.08,940.26,1.5942185]
[1768370125203,0.18485614,942.08,940.25,1.5942185]
[1768370127505,0.18485614,942.08,940.23,1.5942185]
[1768370133313,0.18485614,942.08,940.22,1.5942185]
[1768370136918,0.18485614,942.08,940.21,1.5942185]
[1768370137122,0.18485614,942.08,940.22,1.5942185]
[1768370137323,0.18485614,942.08,940.21,1.5942185]
[1768370137620,0.18485614,942.08,940.15,1.5942185]
[1768370138221,0.18485614,942.08,940.14,1.5942185]
[1768370138426,0.18485614,942.08,940.13,1.5942185]
[1768370140220,0.18485614,942.08,940.12,1.5942185]
[1768370145230,0.18485614,942.08,940.11,1.5942185]
[1768370149232,0.18485614,942.08,940.12,1.5942185]
[1768370149829,0.00953958,942.68,940.12,1.5942185]
[1768370150028,0.00953958,942.68,940.11,1.5942185]
[1768370150232,0.18483552,941.61,940.11,1.5942185]
[1768370150430,3.6829469,942.78,940.11,1.5942185]
[1768370150730,0.18483601,941.61,940.11,1.5942185]
[1768370150933,0.00958134,942.55,940.11,1.5942185]
[1768370151131,0.1848365,941.61,940.11,1.5942185]
[1768370151433,3.6829469,942.77,940.11,1.5942185]
[1768370151835,0.1848365,941.61,940.11,1.5942185]
[1768370152036,3.6829469,942.77,940.11,1.5942185]
[1768370152236,0.1848365,941.61,940.11,1.5942185]
[1768370152637,0.01326423,942.55,940.11,1.5942185]
[1768370152836,0.1848365,941.61,940.11,1.5942185]
[1768370153133,3.6829469,942.77,940.11,1.5942185]
[1768370153336,0.1848365,941.61,940.11,1.5942185]
[1768370153637,0.00973942,942.55,940.11,1.5942185]
[1768370153837,0.1848365,941.61,940.11,1.5942185]
[1768370154136,3.6829469,942.77,940.11,1.5942185]
[1768370154332,0.1848365,941.61,940.12,1.5942185]
[1768370154737,0.0130882,942.55,940.12,1.5942185]
[1768370155035,0.18483601,941.61,940.12,1.5942185]
[1768370155239,3.6829469,942.77,940.12,1.5942185]
[1768370155435,0.18483601,941.95,940.12,1.5942185]
[1768370155738,0.01213746,942.55,940.12,1.5942185]
[1768370155936,0.18483601,941.61,940.12,1.5942185]
[1768370156240,3.6829469,942.76,940.12,1.5942185]
[1768370156640,0.18483552,941.62,940.12,1.5942185]
[1768370156941,0.01213453,942.55,940.12,1.5942185]
[1768370157137,0.18483552,942.11,940.12,1.5942185]
[1768370157340,0.18483552,942.11,940.13,1.5942185]
[1768370169746,0.18483552,942.11,940.14,1.5942185]
[1768370175253,0.18483552,942.11,940.15,1.5942185]
[1768370177862,3.6829469,942.71,940.15,1.5942185]
[1768370178260,3.6829469,942.71,940.16,1.5942185]
[1768370179758,3.6829469,942.71,940.15,1.5942185]
[1768370179959,3.6829469,942.69,940.15,1.5942185]
[1768370180161,0.18483552,942.08,940.15,1.5942185]
[1768370180461,0.18483552,942.08,940.16,1.5942185]
[1768370182463,0.18483552,942.08,940.13,1.5942185]
[1768370183362,0.18483552,942.08,940.12,1.5942185]
[1768370184864,0.18483552,942.08,940.1,1.5942185]
[1768370185666,0.18483552,942.08,940.05,1.5942185]
[1768370186269,0.18483552,942.08,940.04,1.5942185]
[1768370187367,0.18483552,942.08,940.03,1.5942185]
[1768370187771,3.6829469,942.58,940.03,1.5942185]
[1768370188070,0.18486743,941.57,940.05,0.18486743]
[1768370188271,3.6829469,942.59,940.03,1.5942185]
[1768370188668,0.01188491,942.51,940.03,1.5942185]
[1768370189068,3.6829469,942.59,940.03,1.5942185]
[1768370189269,3.6829469,942.59,940.02,1.5942185]
[1768370189674,0.18486743,941.95,940.07,0.18486743]
[1768370210194,0.18486743,941.95,939.89,1.5922674]
[1768370210491,0.18486743,941.95,939.9,0.18489739]
[1768370211194,0.18486743,941.95,939.66,1.5922674]
[1768370211394,0.18486743,941.95,939.77,0.184919]
[1768370276238,0.18486743,941.95,939.77,1.7771864]
[1768370277237,0.18486743,941.95,939.78,1.5922674]
[1768370279043,0.18486743,941.95,939.77,0.184919]
[1768370307657,0.18486743,941.95,939.78,1.5922674]
[1768370320174,0.18486743,941.95,939.79,1.5922674]
[1768370326774,0.18486743,941.95,939.8,1.5922674]
[1768370327978,0.18486743,941.95,939.94,1.5922674]
[1768370328273,0.18486743,941.95,939.93,1.5922674]
[1768370328578,0.18486743,941.95,939.95,1.5922674]
[1768370329178,0.18486743,941.95,939.94,1.5922674]
[1768370330178,0.18486743,941.95,939.93,1.5922674]
[1768370331279,0.18486743,941.95,939.77,0.184919]
[1768370331280,0.18486743,941.95,939.92,1.5922674]
[1768370332183,0.18486743,941.95,939.91,1.5922674]
[1768370333881,0.18486743,941.95,939.77,0.184919]
[1768370333882,0.18486743,941.95,939.9,1.5922674]
[1768370334880,0.18486743,941.95,939.95,1.5922674]
[1768370335281,0.18486743,941.95,939.77,0.184919]
[1768370335282,0.18486743,941.95,939.94,1.5922674]
[1768370337187,0.18486743,941.95,939.93,1.5922674]
[1768370339189,0.18486743,941.95,940.03,1.5922674]
[1768370341489,0.18486743,941.95,940.02,1.5922674]
[1768370342189,0.18486743,941.95,940.01,1.5922674]
[1768370343290,0.18486743,941.95,940.0,1.5922674]
[1768370345285,0.18486743,941.95,939.99,1.5922674]
[1768370347292,0.18486743,941.95,939.98,1.5922674]
[1768370350690,0.18486743,941.95,940.04,1.5922674]
[1768370351191,0.18486743,941.95,940.09,1.5922674]
[1768370351495,0.18486743,941.95,940.08,1.5922674]
[1768370351890,0.18486743,941.95,940.09,1.5922674]
[1768370353297,0.18486743,941.95,940.08,1.5922674]
[1768370354298,0.18486743,941.95,940.07,1.5922674]
[1768370356396,0.18486743,941.95,940.06,1.5922674]
[1768370359297,0.18486743,941.95,940.05,1.5922674]
[1768370361397,0.18486743,941.95,940.04,1.5922674]
[1768370361599,0.18486743,941.95,940.0,1.5922674]
[1768370363399,0.18486743,941.95,940.01,1.5922674]
[1768370365198,0.18486743,941.95,940.02,1.5922674]
[1768370366502,0.18486743,941.95,939.91,1.5922674]
[1768370367197,0.18486743,941.95,939.92,1.5922674]
[1768370367997,0.18486743,941.95,939.93,1.5922674]
[1768370368202,0.18486743,941.95,939.94,1.5922674]
[1768370369201,0.18486743,941.95,939.95,1.5922674]
[1768370369402,0.18486743,941.95,939.96,1.5922674]
[1768370370198,0.18486743,941.95,939.97,1.5922674]
[1768370371304,0.18486743,941.95,939.98,1.5922674]
[1768370372201,0.18486743,941.95,940.0,1.5922674]
[1768370374407,0.18486743,941.95,940.01,1.5922674]
[1768370376303,0.18486743,941.95,940.02,1.5922674]
[1768370378204,0.18486743,941.95,940.03,1.5922674]
[1768370381209,0.18486743,941.95,940.04,1.5922674]
[1768370384112,0.18486743,941.95,940.05,1.5922674]
[1768370389015,0.18486743,941.95,940.04,1.5922674]
[1768370389719,3.6976182,942.68,940.04,1.5922674]
[1768370390019,0.18485614,941.55,940.04,1.5922674]
[1768370390316,3.6976182,942.68,940.04,1.5922674]
[1768370390516,0.18485614,941.55,940.04,1.5922674]
[1768370390721,0.00913928,942.49,940.04,1.5922674]
[1768370391020,0.18485565,941.55,940.04,1.5922674]
[1768370391321,3.6976182,942.69,940.04,1.5922674]
[1768370391616,0.18485565,941.55,940.04,1.5922674]
[1768370391821,3.6976182,942.69,940.04,1.5922674]
[1768370392220,0.18485565,941.55,940.04,1.5922674]
[1768370392416,3.6976182,942.69,940.04,1.5922674]
[1768370392620,0.18485565,941.55,940.04,1.5922674]
[1768370392918,3.6976182,942.69,940.04,1.5922674]
[1768370393115,0.18485565,941.55,940.04,1.5922674]
[1768370393420,3.6976182,942.69,940.04,1.5922674]
[1768370393817,0.18485565,941.55,940.04,1.5922674]
[1768370394117,3.6976182,942.69,940.04,1.5922674]
[1768370394320,0.18485565,941.55,940.04,1.5922674]
[1768370394616,3.6976182,942.69,940.04,1.5922674]
[1768370394818,0.18485565,941.55,940.04,1.5922674]
[1768370395121,3.6976182,942.69,940.04,1.5922674]
[1768370395323,0.18485565,941.55,940.04,1.5922674]
[1768370395523,3.6976182,942.69,940.04,1.5922674]